fUST/lending_fUST_20240801
["ID","MTS","AMOUNT","RATE_DAILY","PERIOD"]
[333810616,1722525055257,-506.30675698,0.00014794,2]
[333810617,1722525055267,-500.0,0.00014794,2]
[333810618,1722525055276,-764.49,0.00014794,2]
[333810619,1722525055285,-500.0,0.00014794,2]
[333810620,1722525055294,-500.0,0.00014794,2]
[333810621,1722525055310,-611.37,0.00014794,2]
[333810622,1722525055319,-394.9759661,0.00014794,2]
[333810623,1722525055328,-500.0,0.00014794,2]
[333810624,1722525055338,-505.71006865,0.00014794,2]
[333810625,1722525055349,-500.0,0.00014794,2]
[333810626,1722525055432,-527.33,0.00014794,2]
[333810627,1722525055443,-500.0,0.00014794,2]
[333810628,1722525055453,-500.0,0.00014794,2]
[333810629,1722525055462,-599.5,0.00014794,2]
[333810630,1722525055472,-500.0,0.00014794,2]
[333810631,1722525055481,-500.0,0.00014794,2]
[333810632,1722525055491,-500.0,0.00014794,2]
[333810633,1722525055501,-500.0,0.00014794,2]
[333810634,1722525055510,-500.0,0.00014794,2]
[333810635,1722525055521,-500.0,0.00014794,2]
[333810636,1722525055531,-500.0,0.00014794,2]
[333810637,1722525055541,-726.8,0.00014794,2]
[333810638,1722525055550,-587.8649791,0.00014794,2]
[333810639,1722525055559,-537.34,0.00014794,2]
[333810640,1722525055569,-500.0,0.00014794,2]
[333810641,1722525055578,-500.0,0.00014794,2]
[333810642,1722525055588,-500.0,0.00014794,2]
[333810643,1722525055599,-635.91,0.00014794,2]
[333810644,1722525055608,-949.05,0.00014794,2]
[333810645,1722525055618,-500.0,0.00014794,2]
[333810646,1722525055628,-500.0,0.00014794,2]
[333810647,1722525055638,-500.0,0.00014794,2]
[333810648,1722525055647,-536.62,0.00014794,2]
[333810649,1722525055658,-500.0,0.00014794,2]
[333810650,1722525055667,-500.0,0.00014794,2]
[333810651,1722525055677,-508.40938175,0.00014794,2]
[333810652,1722525055687,-516.15582011,0.00014794,2]
[333810653,1722525055696,-1012.7,0.00014794,2]
[333810654,1722525055706,-500.0,0.00014794,2]
[333810655,1722525055716,-500.0,0.00014794,2]
[333810656,1722525055726,-712.97,0.00014794,2]
[333810657,1722525055736,-2027.71,0.00014794,2]
[333810658,1722525055745,-766.2,0.00014794,2]
[333810659,1722525055755,-995.87,0.00014794,2]
[333810660,1722525055765,-768.32,0.00014794,2]
[333810661,1722525055774,-500.0,0.00014794,2]
[333810662,1722525055784,-506.85517019,0.00014794,2]
[333810663,1722525055794,-2008.56,0.00014794,2]
[333810664,1722525055804,-599.59,0.00014794,2]
[333810665,1722525055814,-1732.21,0.00014794,2]
[333810666,1722525055824,-2681.49,0.00014794,2]
[333810667,1722525055834,-1145.27,0.00014794,2]
[333810668,1722525055844,-4040.68,0.00014794,2]
[333810669,1722525055854,-500.0,0.00014794,2]
[333810670,1722525055864,-773.14,0.00014794,2]
[333810671,1722525055874,-500.0,0.00014794,2]
[333810672,1722525055885,-500.0,0.00014794,2]
[333810673,1722525055895,-515.0415024,0.00014794,2]
[333810674,1722525055904,-809.5,0.00014794,2]
[333810675,1722525055914,-993.4,0.00014794,2]
[333810676,1722525055923,-500.0,0.00014794,2]
[333810677,1722525055933,-500.0,0.00014794,2]
[333810678,1722525055944,-500.0,0.00014794,2]
[333810679,1722525055954,-687.66,0.00014794,2]
[333810680,1722525055963,-520.2,0.00014794,2]
[333810681,1722525055976,-3155.92,0.00014794,2]
[333810682,1722525055986,-500.0,0.00014794,2]
[333810683,1722525055996,-500.0,0.00014794,2]
[333810684,1722525056006,-500.0,0.00014794,2]
[333810685,1722525056016,-614.01,0.00014794,2]
[333810686,1722525056026,-508.71,0.00014794,2]
[333810687,1722525056037,-515.3,0.00014794,2]
[333810688,1722525056047,-500.0,0.00014794,2]
[333810689,1722525056059,-1062.23,0.00014794,2]
[333810690,1722525056069,-401.88401895,0.00014794,2]
[333810691,1722525056078,-500.0,0.00014794,2]
[333810692,1722525056088,-500.0,0.00014794,2]
[333810693,1722525056098,-686.23,0.00014794,2]
[333810694,1722525056107,-2208.99,0.00014794,2]
[333810695,1722525056117,-500.0,0.00014794,2]
[333810696,1722525056127,-379.89575676,0.00014794,2]
[333810697,1722525056137,-500.0,0.00014794,2]
[333810698,1722525056148,-1312.12,0.00014794,2]
[333810699,1722525056159,-3638.47,0.00014794,2]
[333810700,1722525056168,-678.52,0.00014794,2]
[333810701,1722525056178,-559.37,0.00014794,2]
[333810702,1722525056188,-1066.56,0.00014794,2]
[333810703,1722525056198,-657.75,0.00014794,2]
[333810704,1722525056209,-731.07,0.00014794,2]
[333810705,1722525056218,-500.0,0.00014794,2]
[333810706,1722525056228,-500.0,0.00014794,2]
[333810707,1722525056238,-790.72,0.00014794,2]
[333810708,1722525056248,-1342.39,0.00014794,2]
[333810709,1722525056258,-500.0,0.00014794,2]
[333810710,1722525056267,-699.84,0.00014794,2]
[333810711,1722525056277,-959.87,0.00014794,2]
[333810712,1722525056288,-151.76775202,0.00014794,2]
[333810713,1722525056298,-500.0,0.00014794,2]
[333810714,1722525056307,-1033.53,0.00014794,2]
[333810715,1722525056317,-580.7,0.00014794,2]
[333810716,1722525056327,-407.98949568,0.00014794,2]
[333810717,1722525056337,-500.0,0.00014794,2]
[333810718,1722525056347,-500.0,0.00014794,2]
[333810719,1722525056357,-500.0,0.00014794,2]
[333810720,1722525056366,-527.16,0.00014794,2]
[333810721,1722525056375,-500.0,0.00014794,2]
[333810722,1722525056385,-500.0,0.00014794,2]
[333810723,1722525056396,-150.943404,0.00014842,2]
[333810724,1722525056406,-179.26856,0.00014842,2]
[333810725,1722525056417,-13436.2485175,0.00014899,2]
[333810726,1722525056427,-158.695744,0.00014902,2]
[333810727,1722525056438,-5034.01,0.00015065,2]
[333810728,1722525056447,-500.0,0.00015067,2]
[333810729,1722525056458,-500.0,0.00015067,2]
[333810730,1722525056468,-500.0,0.00015067,2]
[333810731,1722525056477,-500.0,0.00015067,2]
[333810732,1722525056487,-5034.01,0.00015067,2]
[333810733,1722525056496,-22719.94566699,0.00015068,5]
[333810734,1722525056505,-500.0,0.00015068,2]
[333810735,1722525056516,-558.84,0.00015068,2]
[333810736,1722525056525,-166.60322454,0.00015068,2]
[333810737,1722525056750,-6.98941788,0.00013698,2]
[333810738,1722525057125,-493.01058212,0.00013698,2]
[333810739,1722525057136,-500.0,0.00013698,2]
[333810740,1722525057146,-1.84227259,0.00013972,2]
[333811007,1722525945179,-309.57,0.00010959,2]
[333811008,1722525945201,-166.666666,0.00011435,2]
[333811009,1722525945226,-300.0,0.00011706,2]
[333811010,1722525945248,-300.0,0.00011706,2]
[333811011,1722525945278,-24900.0,0.00011707,2]
[333811012,1722525945301,-166.666666,0.00011747,2]
[333811013,1722525945324,-166.666666,0.00012058,2]
[333811014,1722525945346,-166.666666,0.0001237,2]
[333811015,1722525945369,-184.866587,0.0001241,2]
[333811016,1722525945508,-184.866587,0.00012444,2]
[333811017,1722525945533,-184.866587,0.00012478,2]
[333811018,1722525945558,-184.866587,0.00012512,2]
[333811019,1722525945582,-184.866587,0.00012546,2]
[333811020,1722525945606,-184.866587,0.0001258,2]
[333811021,1722525945629,-184.866587,0.00012614,2]
[333811022,1722525945653,-184.866587,0.00012648,2]
[333811023,1722525945675,-166.666666,0.00012682,2]
[333811024,1722525945699,-184.866587,0.00012682,2]
[333811025,1722525945723,-184.866587,0.00012716,2]
[333811026,1722525945746,-184.866587,0.0001275,2]
[333811027,1722525945768,-184.866587,0.00012785,2]
[333811028,1722525945790,-5848.881003,0.00012799,2]
[333811029,1722525945813,-184.866587,0.00012819,2]
[333811030,1722525945835,-184.866587,0.00012853,2]
[333811031,1722525945857,-420.0,0.00012876,2]
[333811032,1722525945879,-184.866587,0.00012887,2]
[333811033,1722525945900,-92824.8335329,0.0001289,2]
[333811034,1722525945921,-727.7794491,0.00012899,2]
[333811037,1722526002864,1000.0,0.00027,120]
[333811038,1722526028144,-158.53901,0.00012149,2]
[333811039,1722526028168,-158.53901,0.00012188,2]
[333811040,1722526028191,-158.53901,0.00012228,2]
[333811041,1722526028214,-158.53901,0.00012267,2]
[333811042,1722526028237,-158.53901,0.00012307,2]
[333811043,1722526028260,-158.53901,0.00012346,2]
[333811044,1722526028289,-158.53901,0.00012386,2]
[333811045,1722526028312,-158.53901,0.00012426,2]
[333811046,1722526028339,-158.53901,0.00012465,2]
[333811047,1722526028365,-158.53901,0.00012505,2]
[333811048,1722526028388,-158.53901,0.00012544,2]
[333811049,1722526028410,-158.53901,0.00012584,2]
[333811050,1722526028432,-270.89378798,0.00012899,2]
[333811051,1722526028453,-1629.26928721,0.00012899,2]
[333811052,1722526028474,-185.36928895,0.00012899,2]
[333811053,1722526028496,-300.0,0.00012899,2]
[333811054,1722526028520,-166.167564,0.00012986,2]
[333811055,1722526028541,-166.666666,0.00012994,2]
[333811056,1722526028563,-5848.88100296,0.00012996,2]
[333811057,1722526028585,-1000.0,0.00013,13]
[333811058,1722526028606,-150.112233,0.00013,2]
[333811059,1722526028628,-5848.88100296,0.00013193,2]
[333811060,1722526028649,-5848.88100296,0.00013389,2]
[333811061,1722526028672,-92824.8335329,0.00013414,2]
[333811062,1722526028695,-4396.56,0.00013424,2]
[333811063,1722526028717,-4396.56,0.00013424,2]
[333811064,1722526028739,-5848.88100296,0.00013586,2]
[333811065,1722526028759,-88888.0,0.00013587,2]
[333811066,1722526028783,-2964.19526594,0.00013596,2]
[333811067,1722526028804,-2000.0,0.00013598,2]
[333811068,1722526028826,-92824.8335329,0.00013677,2]
[333811069,1722526028854,-6281.43163128,0.00013678,5]
[333811070,1722526029364,-158.53901,0.00012623,2]
[333811071,1722526029389,-158.53901,0.00012663,2]
[333811072,1722526029412,-158.53901,0.00012703,2]
[333811073,1722526029438,-158.53901,0.00012742,2]
[333811074,1722526029466,-2590.85019531,0.00013678,5]
[333811075,1722526029489,-92824.8335329,0.00013678,2]
[333811076,1722526029512,-4396.56,0.00013686,2]
[333811077,1722526029537,-4396.56,0.00013687,2]
[333811078,1722526029562,-4396.56,0.00013687,2]
[333811079,1722526029586,-4396.56,0.00013687,2]
[333811080,1722526029609,-51135.80409579,0.00013688,2]
[333811081,1722526034063,157.36499795,0.0001,2]
[333811082,1722526039164,-158.53901,0.00012782,2]
[333811083,1722526039197,-10150.406086,0.00013688,2]
[333811084,1722526039242,-31538.62335111,0.00013688,2]
[333811085,1722526039279,-4396.56,0.00013696,2]
[333811086,1722526039317,-4396.56,0.00013697,2]
[333811087,1722526039352,-4396.56,0.00013697,2]
[333811088,1722526039386,-309.01416214,0.00013698,2]
[333811089,1722526039411,-347.18982331,0.00013698,2]
[333811090,1722526039438,-500.0,0.00013698,2]
[333811091,1722526039470,-500.0,0.00013698,2]
[333811092,1722526039500,-500.0,0.00013698,2]
[333811093,1722526039533,-500.0,0.00013698,2]
[333811094,1722526039561,-500.0,0.00013698,2]
[333811095,1722526039591,-500.0,0.00013698,2]
[333811096,1722526039621,-500.0,0.00013698,2]
[333811097,1722526039650,-500.0,0.00013698,2]
[333811098,1722526039677,-500.0,0.00013698,2]
[333811099,1722526039706,-500.0,0.00013698,2]
[333811100,1722526039733,-500.0,0.00013698,2]
[333811101,1722526039759,-500.0,0.00013698,2]
[333811102,1722526039787,-550.20225591,0.00013698,2]
[333811103,1722526039813,-504.79816848,0.00013698,2]
[333811104,1722526039839,-500.0,0.00013698,2]
[333811105,1722526039865,-500.0,0.00013698,2]
[333811106,1722526039892,-500.00000008,0.00013698,2]
[333811107,1722526039918,-500.0,0.00013698,2]
[333811108,1722526039945,-500.0,0.00013698,2]
[333811109,1722526039972,-500.0,0.00013698,2]
[333811110,1722526039999,-500.0,0.00013698,2]
[333811111,1722526040025,-500.0,0.00013698,2]
[333811112,1722526040050,-500.0,0.00013698,2]
[333811113,1722526040077,-500.0,0.00013698,2]
[333811114,1722526040102,-500.0,0.00013698,2]
[333811115,1722526040128,-500.0,0.00013698,2]
[333811116,1722526040155,-586.83749382,0.00013698,2]
[333811117,1722526040182,-500.0,0.00013698,2]
[333811118,1722526040352,-500.0,0.00013698,2]
[333811119,1722526040378,-500.0,0.00013698,2]
[333811120,1722526040401,-500.0,0.00013698,2]
[333811121,1722526040426,-500.00175823,0.00013698,2]
[333811122,1722526040449,-500.0,0.00013698,2]
[333811123,1722526040477,-500.0,0.00013698,2]
[333811124,1722526040502,-500.0,0.00013698,2]
[333811125,1722526040531,-621.47398842,0.00013698,2]
[333811126,1722526040560,-500.0,0.00013698,2]
[333811127,1722526040584,-500.0,0.00013698,2]
[333811128,1722526040609,-500.0,0.00013698,2]
[333811129,1722526040632,-521.83545244,0.00013698,2]
[333811130,1722526040654,-500.0,0.00013698,2]
[333811131,1722526040677,-514.05627832,0.00013698,2]
[333811132,1722526040699,-500.0,0.00013698,2]
[333811133,1722526040721,-177.25788204,0.00013698,2]
[333811134,1722526040743,-500.0,0.00013698,2]
[333811135,1722526040765,-500.0,0.00013698,2]
[333811136,1722526040794,-500.0,0.00013698,2]
[333811137,1722526040815,-500.0,0.00013698,2]
[333811138,1722526040837,-500.0,0.00013698,2]
[333811139,1722526040859,-501.47357418,0.00013698,2]
[333811140,1722526040880,-503.09727712,0.00013698,2]
[333811141,1722526040905,-502.41947006,0.00013698,2]
[333811142,1722526040927,-500.0,0.00013698,2]
[333811143,1722526040948,-252.11695064,0.00013698,2]
[333811144,1722526040969,-500.0,0.00013698,2]
[333811145,1722526040990,-646.69,0.00013698,2]
[333811146,1722526041011,-500.0,0.00013698,2]
[333811147,1722526041035,-500.0,0.00013698,2]
[333811148,1722526041056,-500.0,0.00013698,2]
[333811149,1722526041079,-500.0,0.00013698,2]
[333811150,1722526041100,-500.0,0.00013698,2]
[333811151,1722526041124,-500.0,0.00013698,2]
[333811152,1722526041146,-500.0,0.00013698,2]
[333811153,1722526041169,-500.0,0.00013698,2]
[333811154,1722526041190,-500.0,0.00013698,2]
[333811155,1722526041212,-500.0,0.00013698,2]
[333811156,1722526041240,-500.0,0.00013698,2]
[333811157,1722526041303,-500.0,0.00013698,2]
[333811158,1722526041358,-500.0,0.00013698,2]
[333811159,1722526041418,-514.19830556,0.00013698,2]
[333811160,1722526041657,-500.0,0.00013698,2]
[333811161,1722526041678,-500.0,0.00013698,2]
[333811162,1722526041699,-500.0,0.00013698,2]
[333811163,1722526041720,-500.0,0.00013698,2]
[333811164,1722526041742,-500.0,0.00013698,2]
[333811165,1722526041763,-289.29299911,0.00013698,2]
[333811166,1722526041786,-500.0,0.00013698,2]
[333811167,1722526041807,-500.0,0.00013698,2]
[333811168,1722526041828,-500.0,0.00013698,2]
[333811169,1722526041849,-170.3200768,0.00013698,2]
[333811170,1722526041871,-540.3863357,0.00013698,2]
[333811171,1722526041892,-500.0,0.00013698,2]
[333811172,1722526041913,-500.0,0.00013698,2]
[333811173,1722526041934,-500.0,0.00013698,2]
[333811174,1722526041954,-415.42107648,0.00013698,2]
[333811175,1722526041975,-500.0,0.00013698,2]
[333811176,1722526041995,-500.0,0.00013698,2]
[333811177,1722526042016,-500.0,0.00013698,2]
[333811178,1722526042040,-500.0,0.00013698,2]
[333811179,1722526042061,-500.0,0.00013698,2]
[333811180,1722526042081,-500.0,0.00013698,2]
[333811181,1722526042101,-500.0,0.00013698,2]
[333811182,1722526042122,-508.92556124,0.00013698,2]
[333811183,1722526042143,-500.0,0.00013698,2]
[333811184,1722526042164,-504.89101976,0.00013698,2]
[333811185,1722526042185,-507.94500675,0.00013698,2]
[333811186,1722526042207,-500.0,0.00013698,2]
[333811187,1722526042229,-269.59526329,0.00013698,2]
[333811188,1722526042251,-500.0,0.00013698,2]
[333811189,1722526042273,-500.0,0.00013698,2]
[333811190,1722526042305,-500.0,0.00013698,2]
[333811191,1722526042327,-500.0,0.00013698,2]
[333811192,1722526042349,-500.35601503,0.00013698,2]
[333811193,1722526042373,-500.0,0.00013698,2]
[333811194,1722526042395,-500.0,0.00013698,2]
[333811195,1722526042418,-500.0,0.00013698,2]
[333811196,1722526042440,-500.0,0.00013698,2]
[333811197,1722526042463,-505.20594028,0.00013698,2]
[333811198,1722526042485,-500.0,0.00013698,2]
[333811199,1722526042508,-500.0,0.00013698,2]
[333811200,1722526042545,-500.0,0.00013698,2]
[333811201,1722526042568,-500.0,0.00013698,2]
[333811202,1722526042593,-536.76192874,0.00013698,2]
[333811203,1722526042617,-500.0,0.00013698,2]
[333811204,1722526042642,-500.0,0.00013698,2]
[333811205,1722526042665,-500.0,0.00013698,2]
[333811206,1722526042690,-500.0,0.00013698,2]
[333811207,1722526042715,-500.0,0.00013698,2]
[333811208,1722526042740,-500.0,0.00013698,2]
[333811209,1722526042764,-230.72097487,0.00013698,2]
[333811210,1722526042801,-500.0,0.00013698,2]
[333811211,1722526042826,-500.0,0.00013698,2]
[333811212,1722526042850,-500.0,0.00013698,2]
[333811213,1722526042874,-351.19226709,0.00013698,2]
[333811214,1722526043596,-890.94751272,0.00012899,2]
[333811215,1722526043617,-148.80773291,0.00013698,2]
[333811216,1722526043639,-500.0,0.00013698,2]
[333811217,1722526043660,-500.0,0.00013698,2]
[333811218,1722526043683,-500.0,0.00013698,2]
[333811219,1722526043704,-505.15509623,0.00013698,2]
[333811220,1722526043726,-500.0,0.00013698,2]
[333811221,1722526043747,-500.0,0.00013698,2]
[333811222,1722526043772,-500.0,0.00013698,2]
[333811223,1722526043798,-500.0,0.00013698,2]
[333811224,1722526043819,-500.0,0.00013698,2]
[333811225,1722526043840,-500.0,0.00013698,2]
[333811226,1722526043861,-500.0,0.00013698,2]
[333811227,1722526043882,-500.73041792,0.00013698,2]
[333811228,1722526043902,-500.0,0.00013698,2]
[333811229,1722526043923,-500.0,0.00013698,2]
[333811230,1722526043944,-500.0,0.00013698,2]
[333811231,1722526043966,-500.0,0.00013698,2]
[333811232,1722526043988,-500.0,0.00013698,2]
[333811233,1722526044008,-500.0,0.00013698,2]
[333811234,1722526044037,-500.0,0.00013698,2]
[333811235,1722526044059,-500.0,0.00013698,2]
[333811236,1722526044083,-500.0,0.00013698,2]
[333811237,1722526044105,-405.76,0.00013698,2]
[333811238,1722526044128,-500.0,0.00013698,2]
[333811239,1722526044151,-500.0,0.00013698,2]
[333811240,1722526044174,-500.0,0.00013698,2]
[333811241,1722526044196,-500.0,0.00013698,2]
[333811242,1722526044220,-504.82750399,0.00013698,2]
[333811243,1722526044242,-1212.13,0.00013698,2]
[333811244,1722526044265,-500.0,0.00013698,2]
[333811245,1722526044294,-500.0,0.00013698,2]
[333811246,1722526044317,-528.97781954,0.00013698,2]
[333811247,1722526044339,-500.0,0.00013698,2]
[333811248,1722526044360,-500.0,0.00013698,2]
[333811249,1722526044382,-1077.73,0.00013698,2]
[333811250,1722526044405,-500.0,0.00013698,2]
[333811251,1722526044427,-500.0,0.00013698,2]
[333811252,1722526044450,-500.0,0.00013698,2]
[333811253,1722526044472,-500.0,0.00013698,2]
[333811254,1722526044494,-500.0,0.00013698,2]
[333811255,1722526044516,-500.0,0.00013698,2]
[333811256,1722526044544,-500.0,0.00013698,2]
[333811257,1722526044566,-500.0,0.00013698,2]
[333811258,1722526044588,-500.0,0.00013698,2]
[333811259,1722526044608,-500.0,0.00013698,2]
[333811260,1722526044631,-500.0,0.00013698,2]
[333811261,1722526044652,-574.09764681,0.00013698,2]
[333811262,1722526044673,-500.0,0.00013698,2]
[333811263,1722526044694,-555.92,0.00013698,2]
[333811264,1722526044715,-500.0,0.00013698,2]
[333811265,1722526044736,-519.92,0.00013698,2]
[333811266,1722526044756,-500.0,0.00013698,2]
[333811267,1722526044781,-500.0,0.00013698,2]
[333811268,1722526044801,-500.0,0.00013698,2]
[333811269,1722526044824,-500.0,0.00013698,2]
[333811270,1722526044844,-500.0,0.00013698,2]
[333811271,1722526044865,-500.0,0.00013698,2]
[333811272,1722526044886,-500.0,0.00013698,2]
[333811273,1722526044908,-500.0,0.00013698,2]
[333811274,1722526044929,-500.0,0.00013698,2]
[333811275,1722526044950,-205.08,0.00013698,2]
[333811276,1722526044971,-500.0,0.00013698,2]
[333811277,1722526044992,-500.0,0.00013698,2]
[333811278,1722526045013,-500.0,0.00013698,2]
[333811279,1722526045040,-500.0,0.00013698,2]
[333811280,1722526045061,-637.27,0.00013698,2]
[333811281,1722526045084,-500.0,0.00013698,2]
[333811282,1722526045106,-500.0,0.00013698,2]
[333811283,1722526045127,-500.0,0.00013698,2]
[333811284,1722526045148,-507.34818783,0.00013698,2]
[333811285,1722526045171,-500.0,0.00013698,2]
[333811286,1722526045287,-576.59,0.00013698,2]
[333811287,1722526045322,-500.0,0.00013698,2]
[333811288,1722526045346,-500.0,0.00013698,2]
[333811289,1722526045367,-500.0,0.00013698,2]
[333811290,1722526045392,-500.0,0.00013698,2]
[333811291,1722526045415,-500.0,0.00013698,2]
[333811292,1722526045439,-500.0,0.00013698,2]
[333811293,1722526045461,-500.0,0.00013698,2]
[333811294,1722526045483,-500.0,0.00013698,2]
[333811295,1722526045505,-500.0,0.00013698,2]
[333811296,1722526045527,-500.0,0.00013698,2]
[333811297,1722526045550,-500.0,0.00013698,2]
[333811298,1722526045574,-500.0,0.00013698,2]
[333811299,1722526045596,-368.20451606,0.00013698,2]
[333811300,1722526045618,-570.43010416,0.00013698,2]
[333811301,1722526045641,-500.0,0.00013698,2]
[333811302,1722526045663,-500.0,0.00013698,2]
[333811303,1722526045686,-500.0,0.00013698,2]
[333811304,1722526045708,-500.0,0.00013698,2]
[333811305,1722526045729,-522.23,0.00013698,2]
[333811306,1722526045751,-500.0,0.00013698,2]
[333811307,1722526045773,-500.0,0.00013698,2]
[333811308,1722526045794,-923.56,0.00013698,2]
[333811309,1722526045818,-541.8,0.00013698,2]
[333811310,1722526045839,-500.0,0.00013698,2]
[333811311,1722526045859,-500.0,0.00013698,2]
[333811312,1722526045880,-500.0,0.00013698,2]
[333811313,1722526045901,-500.0,0.00013698,2]
[333811314,1722526045926,-500.0,0.00013698,2]
[333811315,1722526045947,-500.0,0.00013698,2]
[333811316,1722526045968,-801.84,0.00013698,2]
[333811317,1722526045989,-500.0,0.00013698,2]
[333811318,1722526046010,-500.0,0.00013698,2]
[333811319,1722526046032,-777.97,0.00013698,2]
[333811320,1722526046053,-525.47971214,0.00013698,2]
[333811321,1722526046074,-500.0,0.00013698,2]
[333811322,1722526046096,-500.0,0.00013698,2]
[333811323,1722526046118,-500.0,0.00013698,2]
[333811324,1722526046141,-500.0,0.00013698,2]
[333811325,1722526046165,-500.0,0.00013698,2]
[333811326,1722526046188,-504.50288948,0.00013698,2]
[333811327,1722526046210,-500.0,0.00013698,2]
[333811328,1722526046232,-500.0,0.00013698,2]
[333811329,1722526046255,-1755.58,0.00013698,2]
[333811330,1722526046275,-500.0,0.00013698,2]
[333811331,1722526046297,-500.0,0.00013698,2]
[333811332,1722526046321,-500.0,0.00013698,2]
[333811333,1722526046344,-500.0,0.00013698,2]
[333811334,1722526046366,-500.0,0.00013698,2]
[333811335,1722526046389,-500.0,0.00013698,2]
[333811336,1722526046412,-500.0,0.00013698,2]
[333811337,1722526046434,-500.0,0.00013698,2]
[333811338,1722526046455,-500.0,0.00013698,2]
[333811339,1722526046476,-500.0,0.00013698,2]
[333811340,1722526046499,-500.0,0.00013698,2]
[333811341,1722526046521,-500.0,0.00013698,2]
[333811342,1722526046544,-500.0,0.00013698,2]
[333811343,1722526046565,-500.0,0.00013698,2]
[333811344,1722526046588,-500.0,0.00013698,2]
[333811345,1722526046610,-716.89,0.00013698,2]
[333811346,1722526046631,-738.18,0.00013698,2]
[333811347,1722526046652,-504.28363064,0.00013698,2]
[333811348,1722526046674,-500.0,0.00013698,2]
[333811349,1722526046697,-500.0,0.00013698,2]
[333811350,1722526046719,-500.0,0.00013698,2]
[333811351,1722526046741,-500.0,0.00013698,2]
[333811352,1722526046763,-500.0,0.00013698,2]
[333811353,1722526046785,-500.0,0.00013698,2]
[333811354,1722526046807,-1969.14,0.00013698,2]
[333811355,1722526046829,-534.35,0.00013698,2]
[333811356,1722526046850,-500.0,0.00013698,2]
[333811357,1722526046872,-500.0,0.00013698,2]
[333811358,1722526046896,-500.0,0.00013698,2]
[333811359,1722526046917,-500.0,0.00013698,2]
[333811360,1722526046938,-519.36,0.00013698,2]
[333811361,1722526046960,-500.0,0.00013698,2]
[333811362,1722526046983,-705.26,0.00013698,2]
[333811363,1722526047003,-500.0,0.00013698,2]
[333811364,1722526047024,-269.00706004,0.00013698,2]
[333811365,1722526047060,-1120.37,0.00013698,2]
[333811366,1722526047081,-500.0,0.00013698,2]
[333811367,1722526047103,-796.6,0.00013698,2]
[333811368,1722526047124,-500.0,0.00013698,2]
[333811369,1722526047147,-1051.75,0.00013698,2]
[333811370,1722526047168,-514.66,0.00013698,2]
[333811371,1722526047189,-500.0,0.00013698,2]
[333811372,1722526047211,-761.76,0.00013698,2]
[333811373,1722526047231,-500.0,0.00013698,2]
[333811374,1722526047253,-500.0,0.00013698,2]
[333811375,1722526047274,-678.47,0.00013698,2]
[333811376,1722526047297,-3752.15,0.00013698,2]
[333811377,1722526047321,-153.92193523,0.00013698,2]
[333811378,1722526047343,-500.0,0.00013698,2]
[333811379,1722526047365,-500.0,0.00013698,2]
[333811380,1722526047387,-500.0,0.00013698,2]
[333811381,1722526047410,-500.0,0.00013698,2]
[333811382,1722526047436,-500.0,0.00013698,2]
[333811383,1722526047457,-500.0,0.00013698,2]